bitfinex-derivatives/quotes_SOLF0:USTF0_20250309
["timestamp","ask_amount","ask_price","bid_price","bid_amount"]
[1741536198158,11.513,130.35,130.34,7.107e-05]
[1741536198454,47.15923729,130.35,130.34,7.107e-05]
[1741536198652,39.48623729,130.35,130.27,2.0161]
[1741536198857,190.0,130.34,130.27,2.0161]
[1741536199154,33.18,130.33,130.28,7.677]
[1741536199459,33.18,130.33,130.27,2.0161]
[1741536199754,0.05892038,130.31,130.29,0.05089764]
[1741536200354,0.05892038,130.31,130.29,7.72739764]
[1741536200755,0.05892038,130.31,130.29,0.05089764]
[1741536201255,33.18,130.39,130.32,35.64623729]
[1741536201555,33.18,130.39,130.29,33.18]
[1741536202055,225.2982,130.4,130.31,35.64623729]
[1741536202253,0.036582,130.35,130.33,0.05564064]
[1741536202455,223.18,130.4,130.33,7.72964064]
[1741536202655,0.036582,130.35,130.33,0.05564064]
[1741536203047,0.036582,130.35,130.34,7.6736]
[1741536203855,0.036582,130.35,130.33,0.05564064]
[1741536205057,33.18,130.36,130.33,0.05564064]
[1741536205350,190.0,130.4,130.33,0.05564064]
[1741536205557,190.0,130.4,130.34,35.64623729]
[1741536205758,33.16,130.43,130.35,2.171]
[1741536205956,7.6713,130.38,130.35,4.2591]
[1741536206359,33.16,130.39,130.35,22.43239534]
[1741536206563,33.16,130.39,130.35,18.12]
[1741536206754,33.16,130.39,130.36,0.05065087]
[1741536206954,7.6719,130.37,130.36,0.05065087]
[1741536208164,7.6718,130.37,130.36,0.05065087]
[1741536208661,190.0,130.38,130.35,18.12]
[1741536208862,35.64623729,130.37,130.31,19.18]
[1741536209158,35.64623729,130.35,130.32,19.18]
[1741536209358,7.6743,130.33,130.32,19.18]
[1741536209562,7.6743,130.33,130.3,54.12]
[1741536209563,35.64623729,130.33,130.3,54.12]
[1741536209755,35.64623729,130.31,130.3,29.05918883]
[1741536209956,35.64623729,130.31,130.27,36.25]
[1741536209957,190.0,130.3,130.27,36.25]
[1741536210260,258.80623729,130.29,130.27,24.453]
[1741536210662,7.6771,130.28,130.27,24.453]
[1741536211051,7.6771,130.28,130.27,24.50567151]
[1741536213363,33.16,130.28,130.27,24.50567151]
[1741536213858,7.6783,130.26,130.25,30.71]
[1741536214563,11.5183,130.26,130.25,18.9887]
[1741536214763,7.6801,130.23,130.22,49.55]
[1741536214967,190.0,130.22,130.14,7.6852]
[1741536215260,225.64623729,130.21,130.13,4.1917]
[1741536215464,0.05522846,130.19,130.17,0.05136454]
[1741536215655,33.16,130.18,130.17,0.05136454]
[1741536215860,0.05522846,130.19,130.17,0.05136454]
[1741536217162,7.683,130.18,130.17,0.05136454]
[1741536217757,197.683,130.18,130.17,0.05136454]
[1741536217961,190.0,130.17,130.13,61.66]
[1741536218156,0.05522846,130.19,130.13,61.66]
[1741536218157,258.80623729,130.16,130.13,61.66]
[1741536218365,35.64623729,130.14,130.13,61.66]
[1741536218566,43.33203729,130.14,130.12,38.01]
[1741536218868,190.0,130.13,130.12,38.01]
[1741536219058,7.6876,130.11,130.07,42.3935694]
[1741536219259,223.16,130.1,130.07,61.6135694]
[1741536219460,33.16,130.09,130.08,0.0577735]
[1741536219862,190.05406839,130.1,130.08,0.0577735]
[1741536220167,0.05406839,130.1,130.08,0.0577735]
[1741536220573,0.05406839,130.1,130.09,7.6883]
[1741536221162,0.05406839,130.1,130.08,0.0577735]
[1741536221564,0.05406839,130.1,130.09,7.6883]
[1741536221765,0.05406839,130.1,130.08,0.0577735]
[1741536222972,190.05406839,130.1,130.08,0.0577735]
[1741536224677,197.74186839,130.1,130.08,0.0577735]
[1741536224970,190.05406839,130.1,130.08,0.0577735]
[1741536228375,197.74226839,130.1,130.08,0.0577735]
[1741536228576,190.05406839,130.1,130.08,0.0577735]
[1741536228777,225.70030568,130.1,130.08,0.0577735]
[1741536229679,197.6883,130.09,130.08,0.0577735]
[1741536230678,190.0,130.09,130.08,0.0577735]
[1741536231175,7.6883,130.09,130.08,0.0577735]
[1741536231375,3.84,130.09,130.04,45.87]
[1741536231577,7.6907,130.05,130.04,45.87]
[1741536231876,40.8707,130.05,130.04,45.8269]
[1741536232267,33.18,130.05,130.04,45.8269]
[1741536232874,40.8707,130.05,130.04,45.7855]
[1741536233079,33.18,130.05,130.03,0.05121821]
[1741536233383,7.6946,129.99,129.9,35.64623729]
[1741536233677,33.2,129.98,129.92,4.3052]
[1741536234471,0.05615712,129.96,129.94,0.05168277]
[1741536239777,190.0,129.95,129.94,0.05168277]
[1741536239981,190.0,129.94,129.92,19.24]
[1741536240280,258.84623729,129.93,129.92,19.24]
[1741536240476,223.2,129.93,129.92,19.24]
[1741536240683,33.2,129.93,129.92,19.24]
[1741536241077,0.05615712,129.96,129.92,19.24]
[1741536241279,33.2,129.95,129.92,19.24]
[1741536242680,33.2,129.95,129.94,7.6972]
[1741536243182,33.2,129.95,129.92,19.24]
[1741536244583,33.2,129.95,129.94,7.6972]
[1741536246085,33.2,129.95,129.92,19.24]
[1741536246478,33.2,129.95,129.94,7.6972]
[1741536247684,33.2,130.03,129.93,35.64623729]
[1741536247879,35.64623729,130.02,129.94,2.1771]
[1741536248083,35.64623729,130.0,129.94,2.1771]
[1741536248389,33.2,129.99,129.94,2.1771]
[1741536248880,0.05431837,129.98,129.95,0.04894977]
[1741536249887,33.2,129.97,129.95,0.04894977]
[1741536251385,68.84623729,129.97,129.95,0.04894977]
[1741536252293,72.68623729,129.97,129.92,19.24]
[1741536252590,35.64623729,129.95,129.92,19.24]
[1741536253090,192.0,129.94,129.92,19.24]
[1741536253292,40.8978,129.93,129.92,19.24]
[1741536253488,33.2,129.93,129.92,19.23596657]
[1741536254085,68.84623729,129.93,129.91,30.79]
[1741536254284,7.7006,129.89,129.81,7.7047]
[1741536254487,33.2,129.88,129.79,6.4744]
[1741536254888,33.2,129.88,129.8,35.64623729]
[1741536255189,0.05718468,129.85,129.83,35.70328514]
[1741536255390,33.2,129.88,129.83,35.70328514]
[1741536255587,34.5403948,129.95,129.85,35.64623729]
[1741536255787,33.2,129.95,129.86,4.2787]
[1741536255983,33.2,129.95,129.9,7.6991]
[1741536256192,33.2,129.95,129.88,35.64623729]
[1741536256392,33.2,129.95,129.9,7.6991]
[1741536256692,0.05495132,129.93,129.9,7.75746726]
[1741536256893,0.05495132,129.93,129.9,0.05836726]
[1741536259192,227.64623729,129.92,129.9,0.05836726]
[1741536259393,33.2,129.91,129.9,0.05836726]
[1741536260195,40.899,129.91,129.9,0.05836726]
[1741536260392,33.2,129.91,129.87,35.68]
[1741536260690,35.64623729,129.89,129.87,35.68]
[1741536260892,7.7008,129.88,129.87,35.68]
[1741536261195,7.7008,129.88,129.85,30.8]
[1741536261196,192.0,129.87,129.85,30.8]
[1741536261396,33.2,129.86,129.85,30.8]
[1741536261592,33.2,129.86,129.85,30.85101002]
[1741536262292,7.7032,129.84,129.79,2.0483]
[1741536262496,192.0,129.85,129.79,2.0483]
[1741536262895,192.0,129.84,129.79,2.0483]
[1741536263398,192.0,129.84,129.73,120.43337619]
[1741536263600,227.70383526,129.83,129.8,0.05686262]
[1741536263795,287.34,129.86,129.74,46.6384694]
[1741536263796,35.64623729,129.81,129.74,42.3935694]
[1741536263993,35.64623729,129.77,129.74,42.3935694]
[1741536264193,33.2,129.76,129.75,33.28]
[1741536266391,0.05189738,129.77,129.75,33.28]
[1741536266596,33.22,129.79,129.76,2.0475]
[1741536266998,1.34132475,129.84,129.76,2.0475]
[1741536267198,33.22,129.83,129.76,2.0475]
[1741536267798,0.04867907,129.81,129.78,0.04934514]
[1741536270698,33.22,129.83,129.78,0.04934514]
[1741536271300,33.22,129.83,129.78,7.75554514]
[1741536271605,33.22,129.83,129.78,0.04934514]
[1741536271906,0.05311423,129.82,129.78,0.04934514]
[1741536272203,0.05311423,129.82,129.79,7.7056]
[1741536272400,0.05311423,129.82,129.78,0.04934514]
[1741536272802,33.22,129.83,129.8,7.7051]
[1741536273003,39.17410024,129.89,129.78,0.04934514]
[1741536273200,33.22,129.88,129.78,0.04934514]
[1741536273408,7.7026,129.85,129.8,7.7051]
[1741536273606,33.22,129.84,129.77,35.64623729]
[1741536274008,225.22,129.9,129.8,35.64623729]
[1741536274304,33.22,129.9,129.83,35.64623729]
[1741536274500,29.8777,129.9,129.84,4.2659]
[1741536274698,36.98681281,129.95,129.84,4.2659]
[1741536274901,33.22,129.94,129.84,4.2659]
[1741536275103,192.0,129.96,129.86,35.64623729]
[1741536275299,0.05134025,129.9,129.88,0.05442158]
[1741536275602,7.6936,130.01,129.93,7.6974]
[1741536275901,30.480603,130.03,129.93,33.2]
[1741536276094,30.480603,130.03,129.94,2.0792]
[1741536276294,33.2,130.02,129.94,2.0792]
[1741536276499,33.2,130.02,129.95,35.64623729]
[1741536276802,0.05215035,129.99,129.98,7.6948]
[1741536276996,33.2,130.02,129.97,0.05626546]
[1741536277999,40.8927,130.02,129.97,0.05626546]
[1741536278305,0.05857615,130.01,129.97,0.05626546]
[1741536278504,7.75167615,130.01,129.97,0.05626546]
[1741536278700,0.05857615,130.01,129.97,0.05626546]
[1741536279107,49.89699193,130.0,129.97,0.05626546]
[1741536279907,0.05857615,130.01,129.97,0.05626546]
[1741536280101,49.89699193,130.0,129.97,0.05626546]
[1741536280911,0.05857615,130.01,129.97,0.05626546]
[1741536281903,49.89699193,130.0,129.97,0.05626546]
[1741536282907,49.89699193,130.0,129.88,49.89699193]
[1741536282908,99.79398386,129.98,129.87,2.0347]
[1741536283105,49.89699193,129.92,129.87,2.0347]
[1741536283310,33.18,129.91,129.83,2.1365]
[1741536283506,7.7002,129.89,129.83,2.1365]
[1741536283705,49.89699193,129.88,129.81,4.219]
[1741536283912,49.89699193,129.86,129.85,5.4432]
[1741536284109,7.704,129.83,129.78,12.7348923]
[1741536284309,33.18,129.82,129.78,12.7348923]
[1741536284710,83.07699193,129.82,129.79,0.05005323]
[1741536284911,49.89699193,129.8,129.79,0.05005323]
[1741536285112,57.60249193,129.8,129.79,0.05005323]
[1741536285812,0.05674317,129.81,129.79,0.05005323]
[1741536286017,33.23674317,129.81,129.79,0.05005323]
[1741536286711,29.89584317,129.81,129.79,0.05005323]
[1741536286906,33.18,129.85,129.79,0.05005323]
[1741536287106,33.18,129.88,129.8,49.89699193]
[1741536287508,33.18,129.88,129.82,49.89699193]
[1741536287812,1.34060134,129.94,129.84,49.89699193]
[1741536287813,33.18,129.94,129.84,49.89699193]
[1741536288114,33.18,129.94,129.85,33.18]
[1741536289213,0.05171622,129.91,129.85,33.18]
[1741536289416,0.05171622,129.91,129.88,0.05889291]
[1741536290018,0.05171622,129.91,129.89,7.7002]
[1741536290213,0.05171622,129.91,129.88,0.05889291]
[1741536291920,33.18,129.9,129.88,0.05889291]
[1741536292311,83.07699193,129.9,129.82,2.1457]
[1741536292518,85.21929193,129.9,129.82,2.1457]
[1741536292713,85.21929193,129.9,129.79,2.0871]
[1741536293318,85.21929193,129.9,129.78,2.1457]
[1741536293517,0.05079385,129.86,129.83,0.05535512]
[1741536293719,33.18,129.85,129.83,0.05535512]
[1741536295921,0.05079385,129.86,129.83,7.75865512]
[1741536296122,0.05079385,129.86,129.83,0.05535512]
[1741536297419,0.05079385,129.86,129.84,7.7031]
[1741536297625,0.05079385,129.86,129.83,0.05535512]
[1741536298315,33.18,129.85,129.83,0.05535512]
[1741536298827,40.8828,129.85,129.83,0.05535512]
[1741536299129,33.18,129.85,129.83,0.05535512]
[1741536299324,7.7031,129.84,129.83,0.05535512]
[1741536299632,33.18,129.85,129.83,0.05535512]
[1741536300225,33.18,129.84,129.83,0.05535512]
[1741536300929,40.8831,129.84,129.83,0.05535512]
[1741536301724,0.05079385,129.86,129.83,0.05535512]
[1741536302122,33.23079385,129.86,129.83,0.05535512]
[1741536302523,0.05079385,129.86,129.85,7.7025]
[1741536302732,192.0,129.92,129.83,0.05535512]
[1741536303036,33.18,129.91,129.8,49.89699193]
[1741536304034,0.05550334,129.87,129.85,7.7021]
[1741536304234,33.23550334,129.87,129.8,49.89699193]
[1741536304434,33.23550334,129.87,129.85,0.04916337]
[1741536304629,33.23550334,129.87,129.86,7.7019]
[1741536304832,2.1674,129.93,129.86,3.86]
[1741536305026,33.18,129.93,129.86,49.89699193]
[1741536305229,2.0675,129.98,129.86,49.89699193]
[1741536305429,33.18,129.97,129.87,23.41]
[1741536305928,0.05483659,129.93,129.91,0.05023771]
[1741536306130,33.18,129.92,129.91,0.05023771]
[1741536306627,33.18,129.92,129.91,7.74923771]
[1741536306832,0.05483659,129.93,129.91,3.89023771]
[1741536307033,33.18,129.97,129.91,0.05023771]
[1741536307431,33.18,129.97,129.9,49.89699193]
[1741536308239,0.05922894,129.95,129.92,0.05267894]
[1741536308632,2.2373,130.02,129.93,49.89699193]
[1741536308832,63.640603,130.03,129.95,49.89699193]
[1741536309034,33.16,130.03,129.93,51.97529193]
[1741536309234,7.6937,130.0,129.95,7.6961]
[1741536309431,33.16,129.99,129.93,2.0783]
[1741536310034,33.16,129.99,129.95,0.0541353]
[1741536310238,40.8543,129.99,129.95,0.0541353]
[1741536310434,33.16,129.99,129.95,0.0541353]
[1741536311142,33.16,130.02,129.95,0.0541353]
[1741536311537,33.16,130.02,129.95,49.89699193]
[1741536311735,257.7298084,130.07,129.97,0.04975918]
[1741536311736,256.3906,130.07,129.97,0.04975918]
[1741536312043,7.6932,130.01,129.97,7.6953]
[1741536312237,33.16,130.01,129.93,303.99699193]
[1741536312434,33.16,130.01,129.98,7.74636142]
[1741536312640,33.16,130.01,129.98,0.05206142]
[1741536313236,83.05699193,130.01,129.98,0.05206142]
[1741536313535,2.126,130.0,129.89,49.89699193]
[1741536313737,49.89699193,129.99,129.88,4.3082]
[1741536314041,49.89699193,129.99,129.87,25.6113]
[1741536314042,49.89699193,129.95,129.87,25.6113]
[1741536314231,254.06,129.99,129.87,25.6113]
[1741536314232,33.16,129.94,129.87,25.6113]
[1741536314634,0.04893779,129.92,129.89,49.95422767]
[1741536314939,33.16,129.94,129.89,49.95422767]
[1741536315140,33.14,129.97,129.95,7.6966]
[1741536315434,33.14,130.02,129.94,49.89699193]
[1741536315933,33.14,130.02,129.95,2.216]
[1741536316135,33.14,130.02,129.97,0.0513533]
[1741536316441,49.89699193,130.01,129.97,0.0513533]
[1741536316935,49.89699193,129.99,129.9,2.216]
[1741536317136,49.89699193,129.97,129.86,49.89699193]
[1741536317733,49.89699193,129.97,129.92,7.698]
[1741536317930,37.3465,129.98,129.86,49.89699193]
[1741536318137,37.3465,129.98,129.93,0.05025021]
[1741536318138,0.05763838,129.96,129.93,0.05025021]
[1741536318336,49.89699193,129.95,129.93,0.05025021]
[1741536318530,40.8377,129.94,129.88,7.7007]
[1741536318739,33.14,129.94,129.88,7.7007]
[1741536318937,33.14,129.94,129.85,2.216]
[1741536319137,33.14,129.94,129.88,7.7006]
[1741536319339,33.14,129.94,129.85,2.216]
[1741536319740,0.05321225,129.92,129.89,0.05407806]
[1741536320245,0.05321225,129.92,129.89,7.75377806]
[1741536320439,0.05321225,129.92,129.89,0.05407806]
[1741536322044,0.05321225,129.92,129.9,7.6996]
[1741536322246,0.05321225,129.92,129.89,0.05407806]
[1741536322742,33.19321225,129.92,129.89,0.05407806]
[1741536323338,0.05321225,129.92,129.89,0.05407806]
[1741536323545,33.14,130.0,129.89,3.89407806]
[1741536323735,33.14,130.0,129.92,49.89699193]
[1741536323942,33.14,130.0,129.94,49.89699193]
[1741536324138,14.2112,130.03,129.94,49.89699193]
[1741536324348,33.14,130.03,130.01,7.6926]
[1741536324540,33.14,130.03,129.98,49.89699193]
[1741536324740,33.14,130.03,130.01,0.05869056]
[1741536324741,33.19723022,130.03,130.01,0.05869056]
[1741536324936,7.6929,130.02,129.96,7.696]
[1741536325149,0.05728916,130.01,129.98,0.04937151]
[1741536325648,49.89699193,129.99,129.88,49.89699193]
[1741536326039,7.6965,129.96,129.88,7.7006]
[1741536326239,33.14,129.95,129.87,23.41]
[1741536326847,0.0492516,129.92,129.9,0.05280048]
[1741536327941,33.14,129.97,129.9,0.05280048]
[1741536328143,33.14,129.97,129.91,49.89699193]
[1741536328343,33.14,129.97,129.95,7.6965]
[1741536328743,303.91699193,130.03,129.93,49.89699193]
[1741536328950,33.14,130.02,129.99,7.6938]
[1741536329249,33.19450838,130.02,129.99,7.6938]
[1741536329439,33.19450838,130.02,129.97,0.05810376]
[1741536329645,33.19450838,130.02,129.97,7.75340376]
[1741536329948,33.19450838,130.02,129.97,0.05810376]
[1741536331047,49.89699193,129.99,129.87,23.41]
[1741536331251,49.89699193,129.97,129.87,25.5962]
[1741536331650,7.6976,129.94,129.88,7.7006]
[1741536331849,33.14,129.93,129.88,7.7006]
[1741536332053,33.14,129.93,129.87,31.1111]
[1741536332258,0.04904506,129.92,129.89,0.05251791]
[1741536333046,7.74754506,129.92,129.89,0.05251791]
[1741536333451,0.04904506,129.92,129.89,0.05251791]
[1741536335159,0.04904506,129.92,129.9,7.6995]
[1741536335757,0.04904506,129.92,129.89,0.05251791]
[1741536337364,49.89699193,129.91,129.87,23.41]
[1741536337755,7.6999,129.9,129.87,23.41]
[1741536338056,33.14,129.89,129.87,23.41]
[1741536338560,0.05179278,129.89,129.87,23.46038176]
[1741536338959,33.14,129.93,129.88,49.89699193]
[1741536339851,33.14,129.97,129.9,49.89699193]
[1741536340263,0.049828,129.95,129.94,7.6969]
[1741536340457,35.2773,130.0,129.92,49.89699193]
[1741536340760,0.04975328,129.96,129.95,7.6966]
[1741536341056,35.2773,130.0,129.92,49.89699193]
[1741536341356,0.05906218,129.97,129.96,7.6958]
[1741536341754,0.05906218,129.97,129.94,49.95541365]
[1741536341953,0.05906218,129.97,129.96,7.696]
[1741536342157,33.14,129.99,129.96,49.89699193]
[1741536342462,33.14,130.02,129.96,49.89699193]
[1741536342863,33.14,130.02,129.95,2.2289]
[1741536343163,34.779503,130.04,129.95,2.2289]
[1741536343164,33.14,130.01,129.95,2.2289]
[1741536343362,0.05717578,130.0,129.97,0.05070273]
[1741536343553,49.89699193,129.99,129.89,2.2289]
[1741536343757,49.89699193,129.99,129.87,23.41]
[1741536343758,7.6982,129.93,129.87,23.41]
[1741536343962,33.12,129.92,129.87,23.41]
[1741536344661,0.05092251,129.91,129.88,0.05487228]
[1741536344852,7.75012251,129.91,129.88,0.05487228]
[1741536345054,0.05092251,129.91,129.88,0.05487228]
[1741536345253,49.94791444,129.91,129.87,23.41]
[1741536345457,49.94791444,129.91,129.87,19.9793]
[1741536345863,49.89699193,129.89,129.79,4.4789]
[1741536346064,7.7028,129.85,129.79,4.4789]
[1741536346358,39.06703671,129.84,129.79,4.4789]
[1741536346565,5.99808139,129.83,129.81,0.0522599]
[1741536346763,5.94703671,129.82,129.81,0.0522599]
[1741536347066,5.94703671,129.82,129.81,0.00293115]
[1741536347763,0.05104468,129.83,129.81,0.00293115]
[1741536347972,225.12,129.9,129.81,53.75992308]
[1741536348271,33.12,129.9,129.82,7.7037]
[1741536348463,33.12,129.9,129.81,49.89699193]
[1741536348664,33.12,129.9,129.8,2.1734]
[1741536349065,0.04941928,129.86,129.84,0.05429521]
[1741536349566,33.12,129.9,129.87,7.7013]
[1741536349770,33.12,129.9,129.84,49.95128714]
[1741536349771,33.14,129.93,129.84,49.89699193]
[1741536350564,33.14,129.93,129.87,0.05235145]
[1741536350768,0.05530303,129.9,129.87,49.94934338]
[1741536351066,0.05530303,129.9,129.87,0.05235145]
[1741536353866,2.1827,129.99,129.89,49.89699193]
[1741536354171,33.14,129.98,129.89,49.89699193]
[1741536354370,33.14,129.97,129.89,49.89699193]
[1741536354770,33.14,129.97,129.91,49.89699193]
[1741536354966,0.05456399,129.94,129.92,0.05235848]
[1741536355867,0.05456399,129.94,129.93,7.6978]
[1741536356265,33.14,129.97,129.96,7.696]
[1741536356867,49.89699193,130.02,129.92,2.338]
[1741536357167,33.12,130.01,129.92,2.338]
[1741536357372,33.12,130.01,129.96,0.05376057]
[1741536357570,33.12,130.0,129.96,0.05376057]
[1741536357769,33.12,130.0,129.93,49.89699193]
[1741536357961,2.2467,130.04,129.97,0.04938704]
[1741536358166,33.12,130.03,129.97,0.04938704]
[1741536358367,33.12,130.03,129.97,49.89699193]
[1741536358672,34.03462832,130.07,129.99,49.94797126]
[1741536358673,16.37914316,130.07,129.99,49.94797126]
[1741536358869,16.37914316,130.07,130.0,2.3284]
[1741536359071,49.49914316,130.07,130.06,7.6901]
[1741536359369,33.12,130.08,130.01,49.89699193]
[1741536359569,33.12,130.08,130.07,7.6895]
[1741536359977,30.480603,130.1,130.05,0.04950259]
[1741536360277,30.480603,130.1,130.05,49.94649452]
[1741536360482,81.281608,130.11,130.09,49.89699193]
[1741536360685,69.662808,130.11,130.09,49.89699193]
[1741536360877,31.837208,130.11,130.1,7.6877]
[1741536361077,88.15872508,130.12,130.1,33.12]
[1741536361276,115.54111013,130.2,130.11,49.89699193]
[1741536361480,113.23181013,130.2,130.15,49.89699193]
[1741536361679,113.23181013,130.2,130.17,49.89699193]
[1741536362278,113.23181013,130.2,130.17,0.05335415]
[1741536363083,113.23181013,130.2,130.18,7.6825]
[1741536363283,113.23181013,130.2,130.17,0.05335415]
[1741536364688,33.12,130.23,130.17,0.05335415]
[1741536365981,33.6837,130.24,130.17,0.05335415]
[1741536366181,83.58069193,130.24,130.17,0.05335415]
[1741536366382,33.6837,130.24,130.17,0.05335415]
[1741536366588,0.6037,130.24,130.17,0.05335415]
[1741536369188,7.6801,130.23,130.17,0.05335415]
[1741536369384,0.6037,130.24,130.17,0.05335415]
[1741536371488,4.6428,130.26,130.18,49.89699193]
[1741536371793,33.06,130.25,130.18,49.89699193]
[1741536372090,33.06,130.25,130.21,0.05551511]
[1741536372291,33.06,130.25,130.16,33.06]
[1741536372491,7.681,130.22,130.14,49.89699193]
[1741536372691,33.06,130.25,130.14,49.89699193]
[1741536373089,7.6813,130.21,130.14,49.89699193]
[1741536373488,0.05337285,130.19,130.16,0.05144179]
[1741536373694,2.44617285,130.19,130.08,49.89699193]
[1741536373891,49.89699193,130.16,130.05,256.0179]
[1741536374083,49.89699193,130.14,130.04,10.5983923]
[1741536374285,49.89699193,130.14,130.03,42.3935694]
[1741536374894,49.89699193,130.12,130.03,42.3935694]
[1741536375102,49.94782496,130.1,130.07,0.05160947]
[1741536375297,2.3145,130.09,130.03,42.3935694]
[1741536376200,49.89699193,130.08,130.03,42.3935694]
[1741536376493,2.3145,130.09,129.96,49.89699193]
[1741536376494,49.89699193,130.06,129.96,49.89699193]
[1741536376695,49.89699193,130.06,129.94,49.89699193]
[1741536377395,7.6913,130.04,129.96,49.89699193]
[1741536377596,33.06,130.06,129.98,49.89699193]
[1741536377795,0.05729433,130.01,130.0,49.89699193]
[1741536377998,2.3145,130.09,130.0,49.89699193]
[1741536378301,2.3145,130.09,130.03,49.89699193]
[1741536378501,33.06,130.1,130.03,49.89699193]
[1741536378700,33.06,130.1,130.01,82.95699193]
[1741536379005,33.06,130.1,129.99,49.89699193]
[1741536379200,0.0517473,130.07,130.04,0.05367978]
[1741536380498,0.0517473,130.07,130.05,49.89699193]
[1741536380802,33.06,130.13,130.05,82.95699193]
[1741536381305,255.9764,130.15,130.05,82.95699193]
[1741536381498,33.06,130.14,130.05,82.95699193]
[1741536381697,33.06,130.14,130.06,7.6895]
[1741536381899,0.0585114,130.11,130.08,0.05458286]
[1741536382398,33.06,130.1,130.08,0.05458286]
[1741536382804,7.6883,130.09,130.01,82.95699193]
[1741536383004,33.06,130.1,130.01,82.95699193]
[1741536383203,33.06,130.1,130.0,253.7]
[1741536383401,33.06,130.1,129.98,10.0538]
[1741536383402,7.6901,130.06,129.98,10.0538]
[1741536383700,33.06,130.06,129.98,2.3591]
[1741536384003,0.05020035,130.03,130.01,49.94866714]
[1741536384203,35.2687,130.09,129.99,49.89699193]
[1741536384394,7.69,130.07,130.01,0.04884497]
[1741536384705,0.05491452,130.03,129.98,10.0538]
[1741536384998,0.05491452,130.03,129.99,0.05231841]
[1741536386903,0.05491452,130.03,130.0,7.6935]
[1741536387500,0.05491452,130.03,129.99,49.94931034]
[1741536387695,0.05491452,130.03,130.01,49.89699193]
[1741536387902,0.05491452,130.03,129.99,49.94931034]
[1741536388297,0.05491452,130.03,130.02,7.6925]
[1741536388503,0.05491452,130.03,129.99,49.94931034]
[1741536389310,0.05491452,130.03,129.99,0.05231841]
[1741536389506,0.05491452,130.03,130.02,7.6925]
[1741536389803,0.05491452,130.03,129.99,0.05231841]
[1741536390003,0.05491452,130.03,130.0,7.6933]
[1741536390200,0.05491452,130.03,129.99,0.05231841]
[1741536390593,33.11491452,130.03,129.99,0.05231841]
[1741536391202,33.11491452,130.03,129.99,7.74651841]
[1741536391603,33.11491452,130.03,130.02,7.6925]
[1741536391798,0.05491452,130.03,130.02,7.6925]
[1741536392004,35.2887,130.09,130.01,49.89699193]
[1741536392202,35.2887,130.09,130.03,49.89699193]
[1741536393208,0.05151184,130.07,130.05,0.05265587]
[1741536394204,0.05151184,130.07,130.06,7.6901]
[1741536395207,0.05151184,130.07,130.05,0.05265587]
[1741536396205,0.05151184,130.07,130.06,7.6901]
[1741536396708,0.05151184,130.07,129.99,60.49538423]
[1741536397006,33.06,130.06,129.99,10.5983923]
[1741536397408,7.6909,130.05,129.99,10.5983923]
[1741536397711,33.06,130.06,129.99,10.5983923]
[1741536397906,0.05838912,130.03,130.01,0.050162]
[1741536398109,33.06,130.02,129.99,10.5983923]
[1741536398309,33.06,130.02,129.98,73.9722389]
[1741536398310,4.6564,130.01,129.98,73.9722389]
[1741536398510,4.6564,130.01,129.97,127.180708]
[1741536398808,33.06,130.02,129.97,134.876108]
[1741536399006,33.06,130.02,129.94,49.89699193]
[1741536399202,0.05804108,130.01,129.98,0.05014212]
[1741536400205,192.0,130.11,130.0,49.89699193]
[1741536400206,33.06,130.06,130.0,49.89699193]
[1741536400810,7.6913,130.04,129.99,7.6941]
[1741536401002,33.06,130.06,129.97,7.2046]
[1741536401208,49.89699193,130.05,129.97,2.4305]
[1741536401409,0.04958263,130.03,130.0,0.05217205]
[1741536401615,33.08,130.02,130.0,0.05217205]
[1741536402006,0.04958263,130.03,130.0,0.05217205]
[1741536403008,7.6925,130.02,130.0,0.05217205]
[1741536403311,0.04958263,130.03,130.0,0.05217205]
[1741536404112,0.04958263,130.03,130.0,7.74537205]
[1741536404313,0.04958263,130.03,130.0,0.05217205]